bitfinex/quotes_ETHUSD_20250422
["timestamp","ask_amount","ask_price","bid_price","bid_amount"]
[1745357287269,6.39101829,1712.1,1711.4,0.1089092]
[1745357287469,0.55,1712.1,1711.3,0.05842285]
[1745357287796,0.55,1712.1,1711.4,0.1089092]
[1745357287997,0.55,1712.1,1711.5,0.05841937]
[1745357288198,16.70747253,1712.2,1711.4,0.1089092]
[1745357288406,3.55,1712.1,1710.6,0.005]
[1745357288570,5.84302571,1711.5,1710.6,0.005]
[1745357288770,5.84380109,1711.3,1710.6,0.06344266]
[1745357289176,5.8435327,1711.3,1710.6,0.06344266]
[1745357289382,0.55,1711.4,1710.6,0.06344266]
[1745357289598,6.65,1711.4,1710.6,0.06344266]
[1745357289819,6.1,1711.4,1710.6,0.005]
[1745357289972,10.868,1711.6,1710.8,3.0]
[1745357290178,10.868,1711.6,1710.9,0.05843376]
[1745357290413,10.868,1711.6,1710.8,3.0]
[1745357290787,6.1,1712.0,1710.9,9.63540926]
[1745357291101,1.697,1712.0,1711.0,0.96354093]
[1745357291282,7.53825223,1712.0,1711.0,0.96354093]
[1745357291484,5.84154594,1711.9,1711.0,0.96354093]
[1745357291811,5.84207923,1711.8,1710.9,3.0]
[1745357292009,5.84259391,1711.6,1710.9,3.0]
[1745357292175,0.55,1711.6,1710.7,3.0]
[1745357292374,5.84285564,1711.5,1710.7,3.0]
[1745357292917,12.23532237,1711.6,1710.7,3.0]
[1745357293212,8.30401936,1711.6,1710.7,3.0]
[1745357293426,5.84287347,1711.5,1710.7,3.0]
[1745357293583,5.84288995,1711.5,1710.7,3.0]
[1745357293779,8.30412857,1711.6,1710.7,3.0]
[1745357294089,5.84298781,1711.5,1710.7,3.0]
[1745357294287,0.55,1711.6,1710.7,3.10874474]
[1745357294607,11.94298513,1711.5,1710.7,0.10874474]
[1745357294802,11.94298513,1711.5,1710.7,3.10874474]
[1745357295004,6.1,1711.5,1710.7,3.10874474]
[1745357296405,6.1,1711.5,1710.8,0.05843921]
[1745357296587,0.55,1711.5,1710.9,0.11348915]
[1745357296785,0.55,1711.5,1710.7,3.0]
[1745357296982,0.55,1711.5,1710.8,0.11413878]
[1745357297179,0.55,1711.7,1710.8,0.11413878]
[1745357297379,6.39287549,1711.5,1710.8,0.11413878]
[1745357297622,12.23601316,1711.5,1710.8,0.11413878]
[1745357297916,6.39287549,1711.5,1710.8,0.11413878]
[1745357298143,0.7791,1710.8,1708.4,2.91233293]
[1745357298285,5.84675387,1710.4,1709.3,6.5769765]
[1745357298480,0.55,1710.7,1709.3,6.5769765]
[1745357298787,5.8468781,1710.4,1709.4,3.31959061]
[1745357298987,5.84821086,1710.0,1709.5,0.11155641]
[1745357299187,5.84706189,1710.3,1709.6,0.05848949]
[1745357299526,25.10846844,1710.5,1709.7,0.11135088]
[1745357299920,19.262,1710.5,1709.7,0.11135088]
[1745357300223,19.262,1710.5,1709.8,0.11263786]
[1745357300523,25.10840044,1710.5,1709.2,18.27813181]
[1745357300729,0.55,1710.3,1709.9,0.11198722]
[1745357300934,0.55,1710.3,1709.3,3.05847483]
[1745357301098,0.55,1710.1,1709.3,0.05847483]
[1745357301295,0.55,1709.9,1709.4,0.11112364]
[1745357301531,6.39848797,1709.9,1709.4,0.11112364]
[1745357301739,7.03833677,1709.9,1708.7,6.9884203]
[1745357302047,0.55,1709.7,1708.8,3.1735338]
[1745357302541,0.55,1710.1,1708.9,5.85166606]
[1745357302703,6.39763536,1710.1,1708.9,5.85166606]
[1745357302899,8.70965062,1710.1,1709.0,0.70084453]
[1745357303099,0.85372558,1710.1,1709.1,3.0]
[1745357303409,0.55,1710.1,1709.2,0.11706747]
[1745357303619,0.55,1710.0,1709.2,0.11706747]
[1745357303924,10.875,1710.2,1709.1,3.0]
[1745357304221,10.875,1710.2,1709.2,0.11389671]
[1745357304468,10.875,1710.2,1709.2,0.42528638]
[1745357305239,10.875,1710.2,1709.3,3.0]
[1745357305400,10.878,1710.9,1709.7,3.0]
[1745357305731,10.878,1710.9,1710.0,3.0]
[1745357306051,19.272,1711.2,1710.1,0.3]
[1745357306214,19.57556305,1711.2,1710.2,15.42412042]
[1745357306412,0.30356305,1711.2,1710.4,3.0]
[1745357306614,25.89909318,1711.9,1710.6,8.84567758]
[1745357306813,19.275,1711.9,1710.9,3.0]
[1745357307015,0.30349567,1711.9,1711.0,0.3]
[1745357307246,0.7825,1712.3,1711.1,15.42113784]
[1745357307426,0.7825,1712.3,1711.1,9.5769765]
[1745357307613,6.62267224,1712.3,1711.1,9.5769765]
[1745357307808,5.84081128,1712.1,1711.1,3.0]
[1745357308012,7.00895183,1712.1,1711.1,4.3899]
[1745357308339,5.84070683,1712.2,1711.2,0.05842724]
[1745357308516,5.84102652,1712.1,1711.2,0.05842724]
[1745357308718,5.84102652,1712.1,1711.0,0.3]
[1745357308903,5.84094231,1712.1,1710.9,3.0]
[1745357309103,0.55,1712.0,1711.0,0.31848793]
[1745357309302,0.55,1711.4,1711.0,0.31848793]
[1745357309532,0.55,1711.2,1711.0,0.31848793]
[1745357309746,6.39409892,1711.2,1711.0,0.31848793]
[1745357309905,6.39455111,1711.0,1710.1,0.3]
[1745357310101,0.55,1711.0,1710.1,0.3]
[1745357310304,6.39454643,1711.0,1710.1,0.3]
[1745357310500,5.84454643,1711.0,1710.1,0.3]
[1745357310705,0.55,1710.8,1709.8,3.0]
[1745357310928,0.55,1711.0,1709.9,0.05846507]
[1745357311132,6.39541363,1710.8,1709.7,6.5769765]
[1745357311328,5.84569575,1710.7,1709.4,23.02377833]
[1745357311531,11.147,1710.6,1709.4,10.597]
[1745357311831,6.39714347,1710.3,1709.1,25.8469765]
[1745357312241,6.39714347,1710.3,1709.2,3.31937792]
[1745357312420,4.1147,1710.5,1709.2,3.31937792]
[1745357312625,0.55,1710.2,1709.2,3.0]
[1745357312945,0.55,1710.4,1709.4,3.0]
[1745357313242,1.1147,1710.5,1709.5,0.35847929]
[1745357313444,10.597,1710.6,1709.6,3.0]
[1745357313612,0.63940989,1711.1,1710.0,12.42481275]
[1745357313814,0.63940989,1711.1,1710.1,3.31884559]
[1745357314039,0.63940989,1711.1,1710.2,0.33188456]
[1745357315048,0.63940989,1711.1,1710.3,0.05845367]
[1745357315207,0.55,1711.0,1710.1,3.0]
[1745357318944,0.63940989,1711.1,1710.1,3.0]
[1745357319915,0.55,1711.0,1710.2,0.05845362]
[1745357320121,6.39455029,1711.0,1710.1,3.0]
[1745357320326,1.83783708,1711.0,1710.2,0.05846216]
[1745357320647,1.83783708,1711.0,1710.1,3.95769765]
[1745357320811,1.28783708,1711.0,1710.1,3.95769765]
[1745357321924,0.55,1711.0,1710.1,3.95769765]
[1745357322252,6.39466718,1711.0,1710.1,3.95769765]
[1745357322638,6.39466718,1711.0,1710.1,3.0]
[1745357323737,5.84495693,1710.9,1710.1,3.0]
[1745357323938,6.39466718,1711.0,1710.1,3.0]
[1745357324462,6.39465324,1711.0,1710.1,3.0]
[1745357324854,0.55,1711.0,1710.1,3.0]
[1745357325028,1.2533746,1711.0,1710.1,3.95769765]
[1745357325373,7.0979964,1711.0,1710.1,3.95769765]
[1745357326371,6.483746,1711.1,1710.4,3.0]
[1745357326372,0.30355044,1711.1,1710.4,3.0]
[1745357326830,19.271,1711.5,1710.6,3.0]
[1745357327027,0.30353655,1711.4,1710.6,3.0]
[1745357327265,19.271,1711.5,1710.6,15.42270542]
[1745357327585,5.84159696,1711.9,1710.6,15.42270542]
[1745357327586,0.30350315,1711.9,1711.3,3.0]
[1745357327728,0.30350315,1711.9,1711.4,0.05841477]
[1745357327935,10.024,1712.3,1711.4,3.0]
[1745357328134,10.024,1712.3,1711.4,3.05841469]
[1745357328363,10.024,1712.3,1711.3,3.95769765]
[1745357328576,10.024,1712.3,1711.4,0.39576977]
[1745357328577,12.9537,1712.3,1711.4,0.39576977]
[1745357329032,0.55,1712.2,1711.3,0.95769765]
[1745357329367,0.55,1712.2,1711.1,3.0]
[1745357329567,12.2313609,1712.2,1711.1,3.0]
[1745357329868,0.55,1712.2,1711.1,3.0]
[1745357330167,6.39075306,1712.2,1711.1,3.43971315]
[1745357330473,0.55,1712.0,1711.2,0.34397132]
[1745357331951,6.62587548,1711.9,1711.1,0.05842533]
[1745357332287,0.55,1711.7,1710.6,3.43537733]
[1745357332469,0.55,1711.7,1710.6,3.0]
[1745357333687,0.55,1711.7,1710.6,8.84577183]
[1745357333912,0.55,1711.7,1710.7,0.88457718]
[1745357334897,0.55,1711.6,1710.3,5.84664704]
[1745357335206,0.55,1711.6,1710.4,3.0]
[1745357335668,6.39254806,1711.6,1710.4,3.0]
[1745357335868,0.55,1711.6,1710.4,3.0]
[1745357336182,6.39217775,1711.7,1710.4,8.84647401]
[1745357336396,0.63921778,1711.6,1710.5,0.8846474]
[1745357336558,0.63921778,1711.6,1710.5,1.20419543]
[1745357336893,0.63921778,1711.6,1710.6,0.31954803]
[1745357337099,0.63921778,1711.6,1710.6,3.31954803]
[1745357337256,0.55,1711.7,1710.6,3.31954803]
[1745357337457,0.55,1711.7,1710.5,3.8846474]
[1745357337690,0.55,1711.7,1710.5,9.73088073]
[1745357338396,0.55,1711.7,1710.5,3.8846474]
[1745357339490,0.55,1711.7,1710.6,0.31973422]
[1745357339692,2.19139084,1711.7,1710.6,0.74017238]
[1745357340490,2.19139084,1711.7,1710.7,3.0]
[1745357340698,10.022,1711.8,1710.8,8.90348394]
[1745357340883,10.022,1711.8,1711.0,3.0]
[1745357341191,10.022,1711.8,1711.0,8.84443665]
[1745357341392,10.022,1711.8,1711.2,3.0]
[1745357341697,10.022,1711.8,1711.1,3.0]
[1745357341894,10.022,1711.8,1710.6,0.42043816]
[1745357342056,10.022,1711.8,1710.6,12.42271566]
[1745357342262,0.7808,1711.7,1710.7,3.0]
[1745357342792,0.7808,1711.7,1710.8,0.3196663]
[1745357343094,0.7808,1711.7,1710.8,0.75421348]
[1745357343298,0.7808,1711.7,1710.9,3.0]
[1745357343515,0.7808,1711.7,1710.9,0.91648554]
[1745357343681,0.7808,1711.7,1710.8,3.0]
[1745357343874,0.7808,1711.7,1710.7,9.39536311]
[1745357344086,0.7808,1711.7,1710.9,3.0]
[1745357344403,10.022,1711.8,1711.0,8.84443171]
[1745357344575,10.022,1711.8,1711.0,3.0]
[1745357344779,10.022,1711.8,1711.1,0.61952267]
[1745357345787,10.022,1711.8,1711.1,0.3]
[1745357348870,10.022,1711.8,1710.8,0.43480988]
[1745357349071,10.022,1711.8,1710.8,3.0]
[1745357349526,0.7808,1711.7,1710.8,3.0]
[1745357349706,0.55,1711.6,1710.8,3.42877652]
[1745357350203,0.55,1711.6,1710.9,0.05843795]
[1745357350971,0.55,1711.6,1711.2,3.0]
[1745357351577,0.7808,1711.7,1711.2,3.0]
[1745357351773,1.86108,1711.7,1711.2,3.0]
[1745357352214,0.55,1711.6,1711.2,3.0]
[1745357352387,0.55,1711.6,1711.1,5.0]
[1745357356403,6.39265079,1711.6,1711.1,5.0]
[1745357357052,6.39259127,1711.6,1711.1,5.0]
[1745357357215,0.55,1711.4,1711.1,5.0]
[1745357357404,6.65,1711.4,1711.1,5.0]
[1745357357784,0.7928,1711.3,1711.1,5.0]
[1745357362837,16.122,1711.8,1711.2,3.0]
[1745357363127,16.122,1711.8,1711.3,0.32136285]
[1745357363934,16.122,1711.8,1711.2,3.0]
[1745357364227,16.122,1711.8,1711.2,3.8]
[1745357364801,16.122,1711.8,1711.3,0.32126091]
[1745357365500,16.122,1711.8,1711.2,3.8]
[1745357366139,16.122,1711.8,1711.3,0.3212973]
[1745357366731,16.122,1711.8,1711.2,3.8]
[1745357366910,16.122,1711.8,1711.3,0.38]
[1745357368233,21.96396366,1711.8,1711.2,3.0]
[1745357368532,16.122,1711.8,1711.2,3.0]
[1745357370341,0.55,1711.7,1711.2,3.0]
[1745357371243,6.65,1711.7,1711.2,3.0]
[1745357372532,0.303443,1712.2,1711.6,9.63264286]
[1745357372831,0.8141,1712.6,1711.7,0.32123208]
[1745357373032,6.1,1712.9,1712.1,3.0]
[1745357373033,6.9141,1712.9,1712.1,3.0]
[1745357373234,0.8141,1712.9,1712.1,3.0]
[1745357373532,0.8141,1712.9,1712.2,0.62076722]
[1745357374244,0.8141,1712.9,1712.3,0.3201302]
[1745357374531,0.8141,1712.9,1712.2,0.3]
[1745357374900,0.8141,1712.9,1712.4,3.0]
[1745357375496,0.55,1712.8,1712.4,3.0]
[1745357376131,0.55,1712.8,1712.1,3.0]
[1745357376330,0.7783,1712.4,1712.0,6.63264286]
[1745357376533,9.3703,1712.4,1711.8,3.0]
[1745357376734,10.9462725,1712.4,1711.8,3.0]
[1745357377039,0.55,1712.3,1711.7,6.63264286]
[1745357377539,0.55,1712.3,1711.8,3.0]
[1745357378516,6.65,1712.3,1711.7,6.63264286]
[1745357378723,6.65,1712.3,1711.8,3.0]
[1745357378917,0.665,1712.2,1711.8,3.0]
[1745357379138,6.1,1712.2,1711.7,0.88222326]
[1745357379339,6.1,1712.2,1711.9,6.63264286]
[1745357380039,6.1,1712.2,1711.5,0.42920934]
[1745357380040,6.1,1712.2,1711.8,6.63264286]
[1745357380603,6.1,1712.2,1711.9,3.0]
[1745357382149,6.1,1712.2,1712.1,6.63264286]
[1745357382354,0.7783,1712.5,1712.1,6.63264286]
[1745357383555,0.7783,1712.5,1711.9,3.0]
[1745357385762,1.4400406,1712.5,1711.9,3.0]
[1745357386746,7.5400406,1712.5,1711.9,3.0]
[1745357389238,6.8783,1712.5,1712.0,0.05840929]
[1745357389975,6.8783,1712.5,1711.9,3.0]
[1745357395735,6.1,1712.5,1712.0,0.05840507]
[1745357395939,0.8224,1712.8,1712.2,3.0]
[1745357396139,8.592,1712.9,1712.5,3.0]
[1745357396360,8.592,1712.9,1712.5,3.43983547]
[1745357398079,0.8224,1713.0,1712.5,3.43983547]
[1745357398389,6.922,1713.2,1712.5,3.43983547]
[1745357400051,6.1,1713.2,1712.9,3.0]
[1745357400248,6.922,1713.6,1712.9,3.0]
[1745357400454,6.922,1713.6,1712.9,3.96326429]
[1745357400897,6.1,1713.6,1713.2,3.0]
[1745357401054,6.922,1713.9,1713.3,0.05836033]
[1745357401246,6.922,1713.9,1713.2,3.0]
[1745357401451,6.1,1713.9,1713.3,0.61996759]
[1745357401653,8.022,1714.1,1713.5,3.0]
[1745357401883,8.022,1714.1,1713.6,0.05834745]
[1745357402071,6.1,1714.3,1713.7,6.63264286]
[1745357402300,6.922,1714.4,1713.8,3.0]
[1745357402503,6.922,1714.4,1713.8,3.96326429]
[1745357402700,6.922,1714.4,1713.8,4.39863214]
[1745357402911,6.1,1714.4,1713.8,4.39863214]
[1745357403302,8.02,1714.6,1713.8,4.39863214]
[1745357403504,8.02,1714.6,1714.1,3.0]
[1745357404232,9.14533179,1715.0,1714.1,3.96326429]
[1745357405487,8.842,1715.0,1714.1,3.96326429]
[1745357406182,0.55,1714.9,1714.1,3.0]
[1745357406388,6.38126717,1714.9,1714.1,3.0]
[1745357406627,0.55,1714.9,1714.1,3.0]
[1745357406795,6.1,1714.8,1714.0,6.63264286]
[1745357406999,11.93175911,1714.8,1714.0,6.63264286]
[1745357407319,1.19317591,1714.7,1714.1,3.0]
[1745357407531,1.19317591,1714.7,1714.0,6.63264286]
[1745357407701,7.0252725,1714.7,1714.0,6.63264286]
[1745357407901,1.19317591,1714.7,1714.1,3.0]
[1745357408230,6.1,1714.8,1714.1,3.0]
[1745357410188,6.1,1714.9,1714.1,3.0]
[1745357410632,6.1,1714.9,1714.0,6.63264286]
[1745357410633,6.922,1715.2,1714.6,6.63264286]
[1745357410789,6.922,1715.2,1714.7,3.0]
[1745357410988,6.1,1715.2,1714.7,3.0]
[1745357411188,6.1,1715.2,1714.7,3.96326429]
[1745357412021,8.838,1715.4,1714.7,3.96326429]
[1745357412227,8.838,1715.4,1714.7,0.96326429]
[1745357412431,8.838,1715.4,1714.6,6.63264286]
[1745357412432,6.1,1715.3,1714.6,6.63264286]
[1745357412639,0.55,1715.1,1714.4,3.0]
[1745357412806,0.8122,1715.0,1714.4,3.0]
[1745357413207,14.411,1714.9,1714.1,6.63264286]
[1745357413412,1.4411,1714.8,1714.1,6.63264286]
[1745357413614,1.4411,1714.8,1714.2,3.0]
[1745357413809,1.4411,1714.8,1714.1,6.63264286]
[1745357413810,6.65,1714.7,1714.1,6.63264286]
[1745357414013,0.55,1714.5,1713.9,0.43992215]
[1745357414224,6.65,1714.5,1713.9,3.0]
[1745357414453,6.65,1714.5,1713.9,3.44066497]
[1745357414603,7.39622,1714.5,1713.9,3.44066497]
[1745357415003,6.84622,1714.5,1713.9,3.49900422]
[1745357415226,6.1,1714.5,1713.9,0.44066497]
[1745357415429,6.1,1714.5,1713.8,6.63264286]
[1745357415830,6.1,1714.5,1713.9,3.0]
[1745357418555,6.1,1714.5,1713.9,3.42707579]
[1745357419070,6.1,1714.7,1713.9,3.42707579]
[1745357419268,6.1,1714.7,1714.2,3.0]
[1745357419482,8.3533,1714.8,1714.3,0.05833015]
[1745357419625,6.9122,1714.8,1714.3,0.05833015]
[1745357419962,7.761,1714.9,1714.3,6.69097301]
[1745357420169,7.761,1714.9,1714.3,6.63264286]
[1745357420634,6.9122,1715.1,1714.6,3.0]
[1745357420988,6.1,1715.1,1714.6,3.0]
[1745357421132,7.76,1715.3,1714.8,3.0]
[1745357421330,7.76,1715.3,1714.9,0.05830332]
[1745357421670,6.9122,1715.4,1715.0,3.0]
[1745357421963,6.1,1715.4,1715.0,3.0]
[1745357422170,19.25,1715.5,1715.0,3.0]
[1745357422324,0.4114438,1715.6,1715.2,3.0]
[1745357422819,0.4114438,1715.6,1715.4,3.0]
[1745357423023,0.4114438,1715.6,1715.1,0.3]
[1745357423223,0.4114438,1715.6,1715.2,3.0]
[1745357423826,0.4114438,1715.6,1715.2,3.05829353]
[1745357424223,0.4114438,1715.6,1715.4,3.0]
[1745357425349,0.4114438,1715.6,1715.4,3.05828696]
[1745357425657,0.4114438,1715.6,1715.4,3.43988077]
[1745357425820,0.4114438,1715.6,1715.5,9.97663094]
[1745357426450,0.4114438,1715.6,1715.5,10.03490747]
[1745357426820,0.4114438,1715.6,1715.5,9.97663094]
[1745357428050,0.4114438,1715.6,1715.5,16.35583525]
[1745357428374,6.1,1716.5,1715.5,16.35583525]
[1745357428375,6.1,1716.5,1715.6,3.0]
[1745357428542,7.21541125,1716.6,1716.0,6.63264286]
[1745357428878,7.757,1716.8,1716.3,3.0]
[1745357429038,0.822,1717.2,1716.4,6.63264286]
[1745357429229,0.30322897,1716.9,1716.6,6.63264286]
[1745357429532,0.822,1717.2,1716.7,3.0]
[1745357429727,0.30311083,1717.0,1716.7,3.0]
[1745357430128,0.822,1717.2,1716.7,3.96326429]
[1745357430329,0.822,1717.2,1716.7,3.0]
[1745357430639,1.2334438,1717.4,1716.8,6.63264286]
[1745357431170,1.2334438,1717.4,1716.8,7.06786782]
[1745357431378,0.4114438,1717.4,1717.3,6.63264286]
[1745357431673,0.4114438,1717.4,1717.1,6.63264286]
[1745357432380,0.4114438,1717.4,1716.3,0.55]
[1745357432381,5.82326873,1717.3,1716.4,6.63264286]
[1745357432574,8.08332687,1717.2,1716.5,3.0]
[1745357432763,8.08332687,1717.2,1716.7,3.0]
[1745357433271,8.08332687,1717.2,1716.7,3.05824489]
[1745357433473,0.4114438,1717.4,1716.9,6.63264286]
[1745357433682,0.4114438,1717.4,1717.1,6.63264286]
[1745357433839,0.4114438,1717.4,1717.3,6.63264286]
[1745357434036,0.4114438,1717.4,1717.3,9.63264286]
[1745357435243,0.822,1718.6,1717.4,3.0]
[1745357435440,7.499,1718.8,1717.7,3.0]
[1745357435745,1.12512566,1718.9,1718.3,6.63264286]
[1745357436047,0.30312566,1718.9,1718.4,0.05818443]
[1745357436280,0.30312566,1718.9,1718.6,6.63264286]
[1745357436471,0.29559054,1718.9,1718.6,6.63264286]
[1745357436654,0.4114438,1719.1,1718.6,6.63264286]
[1745357436980,0.4114438,1720.8,1720.7,5.8115883]
[1745357437151,0.30269952,1721.9,1720.8,8.81106128]
[1745357437350,0.30269952,1721.9,1721.7,6.54597372]
[1745357437550,0.822,1722.5,1721.7,6.54597372]
[1745357437886,0.822,1722.5,1722.0,6.54597372]
[1745357438240,0.89894438,1722.5,1722.1,3.0]
[1745357438445,0.4114438,1722.6,1722.1,3.0]
[1745357438854,0.4114438,1722.6,1722.4,3.0]
[1745357439745,22.20964746,1723.7,1722.3,6.54597372]
[1745357439746,0.4114438,1724.3,1722.9,0.4114438]
[1745357439943,0.4114438,1724.3,1723.2,3.0]
[1745357439944,0.822,1724.2,1723.2,3.0]
[1745357440888,0.822,1724.2,1723.1,6.54597372]
[1745357441053,5.8016487,1723.7,1722.9,6.54597372]
[1745357441247,5.80174343,1723.7,1723.3,1.8]
[1745357441445,5.80174343,1723.7,1722.3,6.54597372]
[1745357441446,5.80343677,1723.2,1722.3,6.54597372]
[1745357441643,0.58034368,1723.1,1722.3,6.54597372]
[1745357441873,14.10027248,1723.2,1722.1,6.97378213]
[1745357442080,8.297,1723.2,1722.1,6.54597372]
[1745357442762,8.297,1723.2,1722.2,3.0]
[1745357443163,14.10020103,1723.2,1722.2,3.0]
[1745357443376,8.297,1723.7,1722.7,6.54597372]
[1745357443559,8.297,1723.7,1722.8,3.65459737]
[1745357443952,8.297,1723.7,1722.7,6.54597372]
[1745357444163,0.55,1723.6,1722.5,3.0]
[1745357444369,5.80278037,1723.4,1722.5,3.0]
[1745357444565,8.847,1723.7,1722.4,6.54597372]
[1745357444566,0.55,1723.6,1722.4,6.54597372]
[1745357444778,5.80336099,1723.2,1721.9,3.0]
[1745357444977,6.38391613,1723.1,1722.4,3.0]
[1745357445182,14.6760376,1723.1,1722.3,6.54597372]
[1745357445489,8.8723361,1723.1,1722.4,0.05804642]
[1745357445660,5.804056,1723.0,1722.1,6.54597372]
[1745357445856,8.8723361,1723.1,1722.2,3.05805113]
[1745357446061,0.88723361,1723.0,1722.2,3.05805113]
[1745357446382,5.80432855,1722.9,1722.2,0.05805113]
[1745357446547,0.8063,1723.7,1722.7,6.54597372]
[1745357446747,0.8063,1724.1,1723.1,3.0]
[1745357447154,0.8063,1724.1,1723.2,0.05801344]
[1745357447385,5.80040241,1724.1,1723.2,0.05801244]
[1745357447548,27.445,1724.5,1723.2,0.05801244]
[1745357447749,0.8063,1724.2,1722.9,3.0]
[1745357448087,3.8063,1724.2,1723.0,0.05803058]
[1745357448282,5.80113702,1723.8,1722.3,6.54597372]
[1745357448449,5.80298866,1723.3,1722.3,7.20057109]
[1745357448780,0.8063,1723.4,1722.2,0.44523505]
[1745357448946,5.80287363,1723.3,1722.3,0.05803836]
[1745357449148,5.80326933,1723.2,1722.2,3.43336617]
[1745357449344,8.288,1723.1,1722.2,0.43336617]
[1745357449571,14.09156961,1723.1,1721.8,0.06]
[1745357449778,1.40915696,1723.0,1721.8,0.06]
[1745357450157,1.40915696,1723.0,1721.8,0.50253955]
[1745357450363,7.21313946,1723.0,1721.8,0.50253955]
[1745357450584,0.30250535,1722.9,1721.9,6.54597372]
[1745357450746,7.2131693,1723.0,1721.9,6.54597372]
[1745357450955,0.72131693,1722.9,1721.9,6.54597372]
[1745357451164,5.80516587,1722.7,1721.8,0.06]
[1745357451362,1.02382015,1722.9,1721.8,3.06]
[1745357451568,6.10683311,1722.9,1721.8,3.06]
[1745357451963,0.30250322,1722.9,1721.8,3.06]
[1745357452290,1.40915696,1723.0,1721.9,1.85805401]
[1745357452481,14.09165884,1723.1,1721.9,1.85805401]
[1745357452482,0.3024931,1723.1,1722.3,6.54597372]
[1745357452784,9.0903,1723.8,1722.7,3.0]
[1745357453999,0.55,1723.6,1722.4,6.54597372]
[1745357454288,0.55,1723.6,1721.8,0.06]
[1745357454289,5.80278008,1723.4,1722.2,6.54597372]
[1745357454501,5.80351636,1723.1,1722.2,6.54597372]
[1745357454664,0.58035164,1723.1,1722.2,6.54597372]
[1745357455056,0.58035164,1723.1,1721.9,6.54597372]
[1745357455268,0.58035164,1723.1,1721.9,14.82997372]
[1745357455511,1.33535164,1723.1,1721.9,6.54597372]
[1745357455661,1.33535164,1723.1,1722.0,3.0]
[1745357456009,1.33535164,1723.1,1722.0,0.95459737]
[1745357456160,0.30245718,1723.2,1722.7,6.54597372]
[1745357456361,0.755,1724.5,1723.2,3.55]
[1745357456561,0.7984,1725.0,1723.8,12.34691835]
[1745357456760,8.541,1725.2,1724.0,3.0]
[1745357456956,8.541,1725.2,1724.0,3.96039578]
[1745357457170,8.541,1725.2,1723.9,3.0]
[1745357458281,27.686,1725.0,1723.6,3.43649458]
[1745357458478,27.686,1725.0,1723.6,3.0]
[1745357458690,0.55,1724.9,1723.7,0.0579971]
[1745357458904,3.55,1724.9,1723.6,3.0]
[1745357459071,5.79910775,1724.5,1723.6,3.0]
[1745357459405,0.57991078,1724.4,1723.6,3.0]
[1745357459584,3.55,1724.9,1723.6,3.0]
[1745357459785,6.14739296,1724.6,1723.7,0.05799886]
[1745357460120,6.14739296,1724.6,1723.6,3.0]
[1745357460121,0.3489181,1724.6,1723.6,3.0]
[1745357460473,6.14738753,1724.6,1723.6,3.0]
[1745357460917,6.14738934,1724.6,1723.6,3.0]
[1745357461205,0.61473893,1724.5,1723.6,3.0]
[1745357461706,8.536,1724.4,1723.6,3.0]
[1745357462004,5.79922597,1724.4,1723.2,6.54597372]
[1745357462205,0.61473893,1724.5,1723.2,6.98546931]
[1745357462369,5.79972865,1724.3,1723.3,3.0]
[1745357462577,0.7984,1724.3,1722.9,6.54597372]
[1745357462774,5.80079999,1724.0,1722.9,6.54597372]
[1745357462970,5.80079381,1724.0,1722.9,6.54597372]
[1745357463216,5.80061781,1724.0,1722.9,6.54597372]
[1745357463380,5.8012696,1723.8,1722.9,7.20057109]
[1745357463713,14.33725482,1723.8,1722.6,6.54597372]
[1745357463909,0.7984,1723.7,1722.6,6.54597372]
[1745357464208,5.80194565,1723.6,1722.6,6.54597372]
[1745357464412,5.80310341,1723.3,1722.2,6.54597372]
[1745357464625,5.80372725,1723.1,1721.8,0.06]
[1745357464780,5.80502743,1722.7,1721.8,0.06]
[1745357464975,5.80473721,1722.8,1721.8,0.06]
[1745357465208,5.80484123,1722.7,1721.9,0.0580587]
[1745357465387,5.80438205,1722.9,1722.0,0.31063423]
[1745357465714,0.58037272,1723.0,1722.1,0.05805849]
[1745357465910,0.58037272,1723.0,1722.0,0.31063423]
[1745357465911,28.76866427,1723.2,1722.0,3.31063423]
[1745357466099,28.4664,1723.2,1722.2,3.05805105]
[1745357466412,28.4664,1723.2,1722.2,0.05805105]
[1745357466596,5.80383784,1723.0,1722.2,0.05805105]
[1745357466924,0.43364079,1724.4,1723.3,5.80267662]
[1745357467093,0.30218574,1724.5,1723.9,6.54597372]
[1745357467278,0.30218574,1724.5,1724.1,5.7999432]
[1745357467478,9.3344,1725.3,1724.2,8.79965239]
[1745357467682,9.3344,1725.3,1724.3,0.36860863]
[1745357467922,9.3344,1725.3,1724.4,0.31063423]
[1745357468093,9.3344,1725.3,1724.5,0.31218203]
[1745357468714,9.8844,1725.3,1724.5,0.31218203]
[1745357469076,8.535,1724.8,1724.5,0.31218203]
[1745357469971,0.7984,1724.7,1723.4,6.54597372]
[1745357470499,0.7984,1724.7,1722.7,19.131]
[1745357470698,0.7984,1724.7,1722.6,8.534]
[1745357470699,0.7984,1724.5,1722.8,1.9131]
[1745357470900,0.7984,1724.4,1722.5,6.54597372]
[1745357471100,7.34437372,1724.3,1722.5,6.54597372]
[1745357471291,8.534,1724.2,1722.5,6.54597372]
[1745357471612,0.7984,1724.0,1722.3,6.54597372]
[1745357471788,19.128,1723.9,1722.4,0.05804341]
[1745357472127,4.9128,1723.8,1722.4,0.71844512]
[1745357472283,4.9128,1723.8,1722.4,0.66040171]
[1745357472480,5.8015066,1723.7,1722.5,0.05804341]
[1745357472679,8.534,1723.6,1722.4,3.66040171]
[1745357473819,8.534,1723.6,1722.7,3.0]
[1745357474027,8.534,1723.6,1722.8,0.3]